[Event "Late-Titled-Tuesday-Blitz-February-20-2024"]
[Site "Chess.com"]
[Date "2024.02.20"]
[Round "8"]
[White "vanyakuba"]
[Black "Dinamo3"]
[Result "1-0"]
[WhiteElo "2410"]
[BlackElo "2503"]
[TimeControl "180+1"]
[EndTime "15:28:49 PST"]
[Termination "vanyakuba won on time"]

1. e4 {[%clk 0:03:00.9]} 1... c5 {[%clk 0:02:53.9]} 2. c3 {[%clk 0:03:00.6]}
2... Nf6 {[%clk 0:02:53.3]} 3. e5 {[%clk 0:03:00.7]} 3... Nd5 {[%clk 0:02:53.8]}
4. g3 {[%clk 0:03:00.9]} 4... Nc6 {[%clk 0:02:50.3]} 5. Bg2 {[%clk 0:03:00.8]}
5... Nb6 {[%clk 0:02:49.8]} 6. Nf3 {[%clk 0:02:59]} 6... d5 {[%clk 0:02:49.6]}
7. d4 {[%clk 0:02:48.8]} 7... cxd4 {[%clk 0:02:48.3]} 8. cxd4 {[%clk 0:02:48.2]}
8... Bg4 {[%clk 0:02:48]} 9. Nc3 {[%clk 0:02:46.4]} 9... e6 {[%clk 0:02:47.9]}
10. Be3 {[%clk 0:02:24.3]} 10... Nc4 {[%clk 0:02:47.1]} 11. O-O {[%clk
0:02:13.9]} 11... Qb6 {[%clk 0:02:26.2]} 12. Na4 {[%clk 0:01:57.8]} 12... Qa5
{[%clk 0:02:20.7]} 13. b3 {[%clk 0:01:57.1]} 13... Nxe3 {[%clk 0:02:20.1]} 14.
fxe3 {[%clk 0:01:56.9]} 14... Ba3 {[%clk 0:02:10.3]} 15. Qd2 {[%clk 0:01:05]}
15... Bb4 {[%clk 0:01:37.4]} 16. Qe2 {[%clk 0:01:00]} 16... b5 {[%clk
0:01:37.1]} 17. Nb2 {[%clk 0:00:59.5]} 17... O-O {[%clk 0:01:26]} 18. a3 {[%clk
0:00:37.4]} 18... Bxa3 {[%clk 0:01:13.5]} 19. Nd3 {[%clk 0:00:37.2]} 19... b4
{[%clk 0:00:54.3]} 20. Nc5 {[%clk 0:00:36.8]} 20... Qc7 {[%clk 0:00:46.6]} 21.
Na6 {[%clk 0:00:31.2]} 21... Qb6 {[%clk 0:00:44.6]} 22. h3 {[%clk 0:00:29.4]}
22... Bh5 {[%clk 0:00:44.1]} 23. g4 {[%clk 0:00:28.6]} 23... Bg6 {[%clk
0:00:44.2]} 24. Nc5 {[%clk 0:00:22.7]} 24... Qc7 {[%clk 0:00:44.1]} 25. Na6
{[%clk 0:00:22.4]} 25... Qe7 {[%clk 0:00:41]} 26. Ne1 {[%clk 0:00:14]} 26...
Rac8 {[%clk 0:00:39.7]} 27. Nd3 {[%clk 0:00:14.2]} 27... f6 {[%clk 0:00:25.8]}
28. exf6 {[%clk 0:00:12.2]} 28... Rxf6 {[%clk 0:00:25.9]} 29. Nac5 {[%clk
0:00:11.5]} 29... Rcf8 {[%clk 0:00:24.1]} 30. Rxf6 {[%clk 0:00:10.9]} 30... Rxf6
{[%clk 0:00:24.4]} 31. Nf4 {[%clk 0:00:09.6]} 31... h6 {[%clk 0:00:14.2]} 32.
Nxg6 {[%clk 0:00:08.6]} 32... Rxg6 {[%clk 0:00:14.8]} 33. Qb5 {[%clk 0:00:06.4]}
33... Nd8 {[%clk 0:00:13]} 34. Qb8 {[%clk 0:00:06.4]} 34... Kh7 {[%clk
0:00:12.4]} 35. Rf1 {[%clk 0:00:05.5]} 35... Rf6 {[%clk 0:00:12.9]} 36. Rxf6
{[%clk 0:00:04.7]} 36... gxf6 {[%clk 0:00:13.5]} 37. Qc8 {[%clk 0:00:03.5]}
37... Bc1 {[%clk 0:00:11.4]} 38. Kf2 {[%clk 0:00:02.4]} 38... Bd2 {[%clk
0:00:11.8]} 39. Ke2 {[%clk 0:00:02.7]} 39... Bc3 {[%clk 0:00:11.8]} 40. Nxe6
{[%clk 0:00:02.7]} 40... Nxe6 {[%clk 0:00:11]} 41. Bxd5 {[%clk 0:00:03.2]} 41...
Nf8 {[%clk 0:00:08.3]} 42. Qf5+ {[%clk 0:00:02.8]} 42... Kg7 {[%clk 0:00:08.8]}
43. Be4 {[%clk 0:00:03.2]} 43... Qd6 {[%clk 0:00:05.9]} 44. Qf2 {[%clk
0:00:02.5]} 44... a5 {[%clk 0:00:05.8]} 45. h4 {[%clk 0:00:03]} 45... a4 {[%clk
0:00:06.2]} 46. bxa4 {[%clk 0:00:03.5]} 46... b3 {[%clk 0:00:06.4]} 47. g5
{[%clk 0:00:03.6]} 47... fxg5 {[%clk 0:00:05.5]} 48. hxg5 {[%clk 0:00:04.5]}
48... hxg5 {[%clk 0:00:05.9]} 49. Qf5 {[%clk 0:00:04.5]} 49... Qf6 {[%clk
0:00:04.8]} 50. Qc8 {[%clk 0:00:04]} 50... Bb4 {[%clk 0:00:03.1]} 51. Qc4 {[%clk
0:00:04.3]} 51... Qe7 {[%clk 0:00:02.2]} 52. Qxb3 {[%clk 0:00:04.5]} 52... Bd6
{[%clk 0:00:02.5]} 53. Qd5 {[%clk 0:00:04.7]} 53... Nd7 {[%clk 0:00:01.8]} 54.
Qf5 {[%clk 0:00:04.8]} 54... Nf8 {[%clk 0:00:01.8]} 55. a5 {[%clk 0:00:04.5]}
1-0

[Event "Late-Titled-Tuesday-Blitz-February-20-2024"]
[Site "Chess.com"]
[Date "2024.02.20"]
[Round "8"]
[White "emeli_chess"]
[Black "FredddieCroderg"]
[Result "1-0"]
[WhiteElo "2419"]
[BlackElo "2209"]
[TimeControl "180+1"]
[EndTime "15:28:59 PST"]
[Termination "emeli_chess won on time"]

1. d4 {[%clk 0:03:00.7]} 1... d5 {[%clk 0:02:51]} 2. c4 {[%clk 0:03:00.6]} 2...
e6 {[%clk 0:02:50.1]} 3. Nc3 {[%clk 0:03:00.7]} 3... Nf6 {[%clk 0:02:50.1]} 4.
cxd5 {[%clk 0:03:00.9]} 4... exd5 {[%clk 0:02:49.4]} 5. Bg5 {[%clk 0:03:00.8]}
5... Be7 {[%clk 0:02:49.2]} 6. e3 {[%clk 0:03:00.7]} 6... O-O {[%clk 0:02:49.1]}
7. Bd3 {[%clk 0:03:00.8]} 7... Re8 {[%clk 0:02:48.8]} 8. Qc2 {[%clk 0:02:59.8]}
8... h6 {[%clk 0:02:48]} 9. Bh4 {[%clk 0:02:59.2]} 9... c5 {[%clk 0:02:48]} 10.
dxc5 {[%clk 0:02:56.1]} 10... Nc6 {[%clk 0:02:46.9]} 11. Nf3 {[%clk 0:02:54.5]}
11... d4 {[%clk 0:02:41.6]} 12. Ne2 {[%clk 0:01:29.6]} 12... Nb4 {[%clk
0:02:38.4]} 13. Qd1 {[%clk 0:01:13]} 13... dxe3 {[%clk 0:02:36.2]} 14. Bb5
{[%clk 0:00:55.3]} 14... exf2+ {[%clk 0:02:29.4]} 15. Bxf2 {[%clk 0:00:51.8]}
15... Qxd1+ {[%clk 0:01:56.6]} 16. Rxd1 {[%clk 0:00:48.8]} 16... Rd8 {[%clk
0:01:54.2]} 17. Rxd8+ {[%clk 0:00:47.3]} 17... Bxd8 {[%clk 0:01:54.2]} 18. a3
{[%clk 0:00:44.3]} 18... Nc6 {[%clk 0:01:52.5]} 19. O-O {[%clk 0:00:39.5]} 19...
Be6 {[%clk 0:01:48.3]} 20. Nc3 {[%clk 0:00:35.8]} 20... Be7 {[%clk 0:01:46.3]}
21. b4 {[%clk 0:00:33.8]} 21... Rd8 {[%clk 0:01:44.5]} 22. Rd1 {[%clk
0:00:31.5]} 22... Rxd1+ {[%clk 0:01:41.1]} 23. Nxd1 {[%clk 0:00:31.6]} 23... Ne4
{[%clk 0:01:34.2]} 24. Be1 {[%clk 0:00:28.6]} 24... a5 {[%clk 0:01:30]} 25. Bxc6
{[%clk 0:00:27.6]} 25... bxc6 {[%clk 0:01:28.8]} 26. Nd4 {[%clk 0:00:27.3]}
26... Bd5 {[%clk 0:01:27.4]} 27. Ne3 {[%clk 0:00:25.3]} 27... Bf6 {[%clk
0:01:18.6]} 28. Ndf5 {[%clk 0:00:19.7]} 28... axb4 {[%clk 0:01:08.9]} 29. Nxd5
{[%clk 0:00:17.3]} 29... cxd5 {[%clk 0:00:49.1]} 30. axb4 {[%clk 0:00:16.9]}
30... g6 {[%clk 0:00:47.7]} 31. Nxh6+ {[%clk 0:00:16.4]} 31... Kg7 {[%clk
0:00:45.4]} 32. Ng4 {[%clk 0:00:16.6]} 32... Bd4+ {[%clk 0:00:45.2]} 33. Kf1
{[%clk 0:00:17]} 33... f5 {[%clk 0:00:43.2]} 34. Nf2 {[%clk 0:00:16.8]} 34...
Nc3 {[%clk 0:00:41.4]} 35. Nd3 {[%clk 0:00:15.8]} 35... Nb5 {[%clk 0:00:38.2]}
36. Bf2 {[%clk 0:00:14.7]} 36... Bc3 {[%clk 0:00:32.6]} 37. Ke2 {[%clk
0:00:14.5]} 37... Kf6 {[%clk 0:00:31.8]} 38. h3 {[%clk 0:00:13.5]} 38... g5
{[%clk 0:00:29.7]} 39. g4 {[%clk 0:00:13.3]} 39... f4 {[%clk 0:00:27.4]} 40. h4
{[%clk 0:00:13.4]} 40... gxh4 {[%clk 0:00:26.9]} 41. Bxh4+ {[%clk 0:00:13.1]}
41... Kf7 {[%clk 0:00:18.6]} 42. Kf3 {[%clk 0:00:13]} 42... Nd4+ {[%clk
0:00:12.9]} 43. Kxf4 {[%clk 0:00:13.1]} 43... Ne6+ {[%clk 0:00:12.9]} 44. Kf5
{[%clk 0:00:11.2]} 44... Ng7+ {[%clk 0:00:12]} 45. Kf4 {[%clk 0:00:10.7]} 45...
Ne6+ {[%clk 0:00:11.8]} 46. Ke3 {[%clk 0:00:10.9]} 46... d4+ {[%clk 0:00:11.1]}
47. Ke4 {[%clk 0:00:10.8]} 47... Nc7 {[%clk 0:00:09.7]} 48. Bf2 {[%clk 0:00:10]}
48... Nb5 {[%clk 0:00:09]} 49. Kd5 {[%clk 0:00:09.5]} 49... Ke7 {[%clk
0:00:07.6]} 50. Kc4 {[%clk 0:00:09.3]} 50... Na3+ {[%clk 0:00:06.4]} 51. Kd5
{[%clk 0:00:08.2]} 51... Nb5 {[%clk 0:00:06.5]} 52. g5 {[%clk 0:00:07.9]} 52...
Kf7 {[%clk 0:00:05.3]} 53. c6 {[%clk 0:00:07]} 53... Kg6 {[%clk 0:00:04.4]} 54.
Kc5 {[%clk 0:00:07.3]} 54... Nc7 {[%clk 0:00:03.9]} 55. Bxd4 {[%clk 0:00:07.3]}
55... Ne6+ {[%clk 0:00:02.5]} 56. Kd6 {[%clk 0:00:06.9]} 56... Nxd4 {[%clk
0:00:01.2]} 57. Nf4+ {[%clk 0:00:04.5]} 1-0

[Event "Late-Titled-Tuesday-Blitz-February-20-2024"]
[Site "Chess.com"]
[Date "2024.02.20"]
[Round "8"]
[White "Zhigalko_Sergei"]
[Black "Alphafischer2019"]
[Result "1-0"]
[WhiteElo "2930"]
[BlackElo "2676"]
[TimeControl "180+1"]
[EndTime "15:29:00 PST"]
[Termination "Zhigalko_Sergei won by resignation"]

1. e4 {[%clk 0:03:00.9]} 1... e5 {[%clk 0:03:00.5]} 2. Nf3 {[%clk 0:02:59.4]}
2... Nf6 {[%clk 0:03:00.9]} 3. d4 {[%clk 0:02:57.7]} 3... Nxe4 {[%clk
0:02:57.9]} 4. Bd3 {[%clk 0:02:57.1]} 4... d5 {[%clk 0:02:55.8]} 5. Nxe5 {[%clk
0:02:57.3]} 5... Nd7 {[%clk 0:02:49.1]} 6. Nxd7 {[%clk 0:02:57.2]} 6... Bxd7
{[%clk 0:02:50]} 7. O-O {[%clk 0:02:57.6]} 7... Be7 {[%clk 0:02:49.3]} 8. Re1
{[%clk 0:02:56.3]} 8... Bf5 {[%clk 0:02:38.4]} 9. Bf4 {[%clk 0:02:28.4]} 9...
Bg6 {[%clk 0:02:25.3]} 10. Qe2 {[%clk 0:02:00]} 10... O-O {[%clk 0:01:49.2]} 11.
Nd2 {[%clk 0:01:49.9]} 11... Bd6 {[%clk 0:01:21.6]} 12. Bxe4 {[%clk 0:01:28.8]}
12... Bxf4 {[%clk 0:01:13.9]} 13. Bxg6 {[%clk 0:01:29]} 13... hxg6 {[%clk
0:01:10.4]} 14. Nf3 {[%clk 0:01:28.8]} 14... Re8 {[%clk 0:01:09.7]} 15. Qb5
{[%clk 0:01:26.8]} 15... Rxe1+ {[%clk 0:01:08.8]} 16. Rxe1 {[%clk 0:01:26.6]}
16... Rb8 {[%clk 0:01:08.1]} 17. g3 {[%clk 0:01:22.3]} 17... c6 {[%clk
0:01:04.9]} 18. Qa4 {[%clk 0:01:22.2]} 18... Bc7 {[%clk 0:00:58.9]} 19. Qxa7
{[%clk 0:01:19.3]} 19... Qf6 {[%clk 0:00:43.8]} 20. Kg2 {[%clk 0:01:15.4]} 20...
Qf5 {[%clk 0:00:40.8]} 21. c3 {[%clk 0:00:53.6]} 21... Bd6 {[%clk 0:00:33.9]}
22. Qa4 {[%clk 0:00:47.6]} 22... g5 {[%clk 0:00:30.5]} 23. Qd1 {[%clk
0:00:43.4]} 23... Ra8 {[%clk 0:00:23.6]} 24. a3 {[%clk 0:00:42.2]} 24... f6
{[%clk 0:00:24.2]} 25. h3 {[%clk 0:00:39.7]} 25... Kf7 {[%clk 0:00:23.8]} 26.
Nh2 {[%clk 0:00:39.7]} 26... Rh8 {[%clk 0:00:22.7]} 27. Qg4 {[%clk 0:00:35.8]}
27... g6 {[%clk 0:00:20.9]} 28. Re2 {[%clk 0:00:24.9]} 28... Rd8 {[%clk
0:00:18.4]} 29. Nf1 {[%clk 0:00:18.8]} 29... Qd3 {[%clk 0:00:18.6]} 30. Qe6+
{[%clk 0:00:15.2]} 30... Kg7 {[%clk 0:00:17.7]} 31. Ne3 {[%clk 0:00:14.3]} 31...
f5 {[%clk 0:00:14.6]} 32. Nf1 {[%clk 0:00:09.2]} 32... Bf8 {[%clk 0:00:14]} 33.
Qe5+ {[%clk 0:00:07.6]} 33... Kg8 {[%clk 0:00:13.9]} 34. Re3 {[%clk 0:00:07.1]}
34... Qc2 {[%clk 0:00:14.5]} 35. Qf6 {[%clk 0:00:07.1]} 35... Rd6 {[%clk
0:00:12.4]} 36. Qxg5 {[%clk 0:00:06.5]} 36... Qxb2 {[%clk 0:00:13.1]} 37. Re8
{[%clk 0:00:05.9]} 37... Kf7 {[%clk 0:00:13.5]} 38. Rb8 {[%clk 0:00:04.1]} 38...
Bg7 {[%clk 0:00:12]} 39. Qf4 {[%clk 0:00:03.4]} 39... Re6 {[%clk 0:00:10.7]} 40.
g4 {[%clk 0:00:03.4]} 40... Qc2 {[%clk 0:00:06.4]} 41. Qc7+ {[%clk 0:00:02.6]}
41... Re7 {[%clk 0:00:06.7]} 42. Qc8 {[%clk 0:00:02.9]} 42... Qe4+ {[%clk
0:00:06.8]} 43. Kg1 {[%clk 0:00:02.9]} 43... fxg4 {[%clk 0:00:05.8]} 44. hxg4
{[%clk 0:00:02.6]} 44... Qf4 {[%clk 0:00:04.9]} 45. Rxb7 {[%clk 0:00:02.6]}
45... Rxb7 {[%clk 0:00:03.7]} 46. Qxb7+ {[%clk 0:00:03.5]} 46... Kg8 {[%clk
0:00:04.5]} 47. Qc8+ {[%clk 0:00:03.4]} 47... Kh7 {[%clk 0:00:04.5]} 48. Ne3
{[%clk 0:00:03.9]} 48... Bh6 {[%clk 0:00:02.5]} 49. Qd7+ {[%clk 0:00:04.2]}
49... Bg7 {[%clk 0:00:02.4]} 50. Qxc6 {[%clk 0:00:04.6]} 50... Qf3 {[%clk
0:00:03.2]} 51. Qxd5 {[%clk 0:00:04.8]} 51... Qf4 {[%clk 0:00:03.8]} 52. Kg2
{[%clk 0:00:04.9]} 52... Qb8 {[%clk 0:00:04.6]} 53. a4 {[%clk 0:00:04.7]} 53...
Qa7 {[%clk 0:00:05.5]} 54. a5 {[%clk 0:00:04.3]} 54... Qe7 {[%clk 0:00:05.9]}
55. Qf3 {[%clk 0:00:04.2]} 55... Qh4 {[%clk 0:00:06.8]} 56. a6 {[%clk
0:00:03.9]} 56... Qh3+ {[%clk 0:00:07.7]} 57. Qxh3+ {[%clk 0:00:03.9]} 1-0

[Event "Late-Titled-Tuesday-Blitz-February-20-2024"]
[Site "Chess.com"]
[Date "2024.02.20"]
[Round "8"]
[White "JonSnowNW1"]
[Black "manitodeplomo"]
[Result "0-1"]
[WhiteElo "2505"]
[BlackElo "2661"]
[TimeControl "180+1"]
[EndTime "15:29:04 PST"]
[Termination "manitodeplomo won by resignation"]

1. c4 {[%clk 0:03:00.9]} 1... g6 {[%clk 0:02:59.4]} 2. Nc3 {[%clk 0:02:58.6]}
2... Bg7 {[%clk 0:03:00.3]} 3. g3 {[%clk 0:02:57.3]} 3... c5 {[%clk 0:02:57.9]}
4. Bg2 {[%clk 0:02:57.3]} 4... Nc6 {[%clk 0:02:58.3]} 5. Nf3 {[%clk 0:02:55.3]}
5... Nh6 {[%clk 0:02:57]} 6. O-O {[%clk 0:02:55.2]} 6... Nf5 {[%clk 0:02:56.7]}
7. e3 {[%clk 0:02:54]} 7... O-O {[%clk 0:02:56.3]} 8. b3 {[%clk 0:02:47.6]} 8...
Bxc3 {[%clk 0:02:39.5]} 9. dxc3 {[%clk 0:02:48.5]} 9... b6 {[%clk 0:02:39.3]}
10. e4 {[%clk 0:02:46.9]} 10... Ng7 {[%clk 0:02:36.5]} 11. Bh6 {[%clk
0:02:45.7]} 11... Bb7 {[%clk 0:02:36.4]} 12. Qd2 {[%clk 0:02:42.8]} 12... d6
{[%clk 0:02:36.3]} 13. Rad1 {[%clk 0:02:42.4]} 13... Qc7 {[%clk 0:02:30.7]} 14.
Qg5 {[%clk 0:02:30.5]} 14... Rad8 {[%clk 0:02:27.3]} 15. Qh4 {[%clk 0:02:29.8]}
15... f6 {[%clk 0:02:25.6]} 16. Qf4 {[%clk 0:02:12.3]} 16... e5 {[%clk
0:02:10.1]} 17. Qc1 {[%clk 0:02:09.9]} 17... Ne7 {[%clk 0:02:09.3]} 18. Rfe1
{[%clk 0:02:07.7]} 18... Bc6 {[%clk 0:01:57.7]} 19. h4 {[%clk 0:02:06.2]} 19...
Qb7 {[%clk 0:01:57.3]} 20. Nh2 {[%clk 0:02:04.8]} 20... f5 {[%clk 0:01:53.8]}
21. Bxg7 {[%clk 0:02:04.4]} 21... Kxg7 {[%clk 0:01:53]} 22. h5 {[%clk 0:02:05]}
22... Bxe4 {[%clk 0:01:43.6]} 23. Bxe4 {[%clk 0:02:04.5]} 23... fxe4 {[%clk
0:01:44.5]} 24. h6+ {[%clk 0:02:04.9]} 24... Kh8 {[%clk 0:01:43]} 25. Ng4 {[%clk
0:02:04.8]} 25... Nf5 {[%clk 0:01:40]} 26. Qg5 {[%clk 0:02:03.7]} 26... Rd7
{[%clk 0:01:06.8]} 27. Nf6 {[%clk 0:01:58.9]} 27... Rdf7 {[%clk 0:01:05.9]} 28.
Nxe4 {[%clk 0:01:58.8]} 28... Qe7 {[%clk 0:00:45.5]} 29. Qxe7 {[%clk 0:01:55.9]}
29... Rxe7 {[%clk 0:00:46.4]} 30. Nxd6 {[%clk 0:01:54.5]} 30... Nxh6 {[%clk
0:00:45.5]} 31. Rd5 {[%clk 0:01:48.1]} 31... Ng4 {[%clk 0:00:43.9]} 32. f4
{[%clk 0:01:42]} 32... e4 {[%clk 0:00:38.8]} 33. Rxe4 {[%clk 0:01:38.8]} 33...
Rxe4 {[%clk 0:00:38.7]} 34. Nxe4 {[%clk 0:01:39.7]} 34... Re8 {[%clk 0:00:38.9]}
35. Ng5 {[%clk 0:00:35.4]} 35... h6 {[%clk 0:00:37.1]} 36. Nf7+ {[%clk
0:00:33.5]} 36... Kg7 {[%clk 0:00:36.2]} 37. Ne5 {[%clk 0:00:33.9]} 37... Nxe5
{[%clk 0:00:33.8]} 38. fxe5 {[%clk 0:00:34.8]} 38... h5 {[%clk 0:00:28.1]} 39.
Kg2 {[%clk 0:00:34.6]} 39... g5 {[%clk 0:00:26.7]} 40. Kf3 {[%clk 0:00:35]}
40... Kg6 {[%clk 0:00:26.5]} 41. Ke4 {[%clk 0:00:34.9]} 41... h4 {[%clk
0:00:25.2]} 42. Rd6+ {[%clk 0:00:33.6]} 42... Kh5 {[%clk 0:00:24.9]} 43. gxh4
{[%clk 0:00:32]} 43... gxh4 {[%clk 0:00:22.8]} 44. Rd7 {[%clk 0:00:32]} 44...
Rh8 {[%clk 0:00:20.1]} 45. e6 {[%clk 0:00:29.2]} 45... h3 {[%clk 0:00:19.3]} 46.
Kf3 {[%clk 0:00:24.4]} 46... Kh4 {[%clk 0:00:17.7]} 47. e7 {[%clk 0:00:20.4]}
47... Re8 {[%clk 0:00:16.4]} 48. Rxa7 {[%clk 0:00:19.2]} 48... Rg8 {[%clk
0:00:11.6]} 49. Rd7 {[%clk 0:00:17]} 49... h2 {[%clk 0:00:10.7]} 50. Rd1 {[%clk
0:00:16.9]} 50... Rg1 {[%clk 0:00:10.2]} 51. e8=Q {[%clk 0:00:05.6]} 51... h1=Q+
{[%clk 0:00:09.9]} 52. Kf4 {[%clk 0:00:05.6]} 52... Rg4+ {[%clk 0:00:07.7]} 53.
Kf5 {[%clk 0:00:03.7]} 53... Qf3+ {[%clk 0:00:08.1]} 54. Ke6 {[%clk 0:00:04.2]}
54... Re4+ {[%clk 0:00:08.4]} 55. Kd7 {[%clk 0:00:04.6]} 55... Rxe8 {[%clk
0:00:09.3]} 56. Kxe8 {[%clk 0:00:03.9]} 56... Qxd1 {[%clk 0:00:09]} 0-1

[Event "Late-Titled-Tuesday-Blitz-February-20-2024"]
[Site "Chess.com"]
[Date "2024.02.20"]
[Round "8"]
[White "zajka-molotok"]
[Black "Franmu14"]
[Result "0-1"]
[WhiteElo "2517"]
[BlackElo "2683"]
[TimeControl "180+1"]
[EndTime "15:29:06 PST"]
[Termination "Franmu14 won by resignation"]

1. e4 {[%clk 0:03:00.9]} 1... e5 {[%clk 0:02:58]} 2. Nf3 {[%clk 0:03:00.6]} 2...
Nc6 {[%clk 0:02:58.9]} 3. Nc3 {[%clk 0:03:00.5]} 3... Nf6 {[%clk 0:02:58.2]} 4.
Bb5 {[%clk 0:02:59.9]} 4... Bb4 {[%clk 0:02:58.1]} 5. O-O {[%clk 0:02:59.2]}
5... O-O {[%clk 0:02:58.7]} 6. Bxc6 {[%clk 0:02:58.8]} 6... dxc6 {[%clk
0:02:57.8]} 7. d3 {[%clk 0:02:58]} 7... Nd7 {[%clk 0:02:54.3]} 8. Ne2 {[%clk
0:02:53.7]} 8... Bd6 {[%clk 0:02:52.8]} 9. Ng3 {[%clk 0:02:52.3]} 9... Nc5
{[%clk 0:02:49]} 10. Be3 {[%clk 0:02:50.9]} 10... a5 {[%clk 0:02:46.3]} 11. Nxe5
{[%clk 0:02:34.2]} 11... Bxe5 {[%clk 0:02:44.5]} 12. Bxc5 {[%clk 0:02:33.5]}
12... Bxb2 {[%clk 0:02:43.8]} 13. Rb1 {[%clk 0:02:27.1]} 13... Bc3 {[%clk
0:02:42.9]} 14. Bxf8 {[%clk 0:02:26.4]} 14... Qxf8 {[%clk 0:02:43.8]} 15. Rb3
{[%clk 0:02:22.8]} 15... Bd4 {[%clk 0:02:39.6]} 16. c3 {[%clk 0:02:21.5]} 16...
Bb6 {[%clk 0:02:37.2]} 17. d4 {[%clk 0:02:19.6]} 17... Be6 {[%clk 0:02:37.8]}
18. Rb2 {[%clk 0:02:18.4]} 18... a4 {[%clk 0:02:37.3]} 19. Re1 {[%clk
0:02:12.3]} 19... Qa3 {[%clk 0:02:30.9]} 20. Qc2 {[%clk 0:02:06.7]} 20... Rd8
{[%clk 0:02:25.8]} 21. h3 {[%clk 0:01:58.3]} 21... g6 {[%clk 0:02:18]} 22. Ne2
{[%clk 0:01:55]} 22... Bc4 {[%clk 0:01:57.5]} 23. Nf4 {[%clk 0:01:54.3]} 23...
c5 {[%clk 0:01:45.9]} 24. d5 {[%clk 0:01:49.7]} 24... Ba6 {[%clk 0:01:44.5]} 25.
c4 {[%clk 0:01:37.2]} 25... Bxc4 {[%clk 0:01:23]} 26. Re3 {[%clk 0:01:36.6]}
26... Bb3 {[%clk 0:01:23.2]} 27. axb3 {[%clk 0:01:35.9]} 27... c4 {[%clk
0:01:22.5]} 28. bxc4 {[%clk 0:01:19.6]} 28... Bxe3 {[%clk 0:01:21.2]} 29. fxe3
{[%clk 0:01:18.9]} 29... Qxe3+ {[%clk 0:01:21.2]} 30. Qf2 {[%clk 0:01:18.8]}
30... Qxe4 {[%clk 0:00:50.9]} 31. c5 {[%clk 0:01:17.9]} 31... a3 {[%clk
0:00:47]} 32. Ra2 {[%clk 0:01:17.6]} 32... Ra8 {[%clk 0:00:45.7]} 33. Kh2 {[%clk
0:01:16.3]} 33... Qe5 {[%clk 0:00:41.3]} 34. Qg3 {[%clk 0:01:14]} 34... Ra4
{[%clk 0:00:40.1]} 35. Ne2 {[%clk 0:00:43.6]} 35... Qxg3+ {[%clk 0:00:34]} 36.
Kxg3 {[%clk 0:00:38]} 36... b5 {[%clk 0:00:34.9]} 37. Nc3 {[%clk 0:00:33]} 37...
Ra5 {[%clk 0:00:34.8]} 38. d6 {[%clk 0:00:28.5]} 38... cxd6 {[%clk 0:00:35.5]}
39. cxd6 {[%clk 0:00:29.4]} 39... Kf8 {[%clk 0:00:36]} 40. Nd5 {[%clk
0:00:27.2]} 40... Ke8 {[%clk 0:00:33.2]} 41. Nb4 {[%clk 0:00:24.8]} 41... Kd7
{[%clk 0:00:32.6]} 42. Nc2 {[%clk 0:00:24.5]} 42... Kxd6 {[%clk 0:00:30.2]} 43.
Rxa3 {[%clk 0:00:24.8]} 43... Rxa3+ {[%clk 0:00:30.2]} 44. Nxa3 {[%clk
0:00:25.7]} 44... b4 {[%clk 0:00:30.6]} 45. Nc4+ {[%clk 0:00:23.2]} 45... Kc5
{[%clk 0:00:30.9]} 46. Nb2 {[%clk 0:00:24.1]} 46... Kd4 {[%clk 0:00:30.8]} 47.
Kf4 {[%clk 0:00:23.1]} 47... f6 {[%clk 0:00:20.4]} 48. Na4 {[%clk 0:00:22.8]}
48... b3 {[%clk 0:00:18.7]} 49. h4 {[%clk 0:00:21]} 49... h5 {[%clk 0:00:17.6]}
50. g3 {[%clk 0:00:19.5]} 50... Kd3 {[%clk 0:00:17.4]} 51. Nc5+ {[%clk
0:00:18.5]} 51... Kc4 {[%clk 0:00:17.8]} 52. Na4 {[%clk 0:00:18.2]} 52... Kb4
{[%clk 0:00:17.7]} 53. Nb2 {[%clk 0:00:18.4]} 53... Kc3 {[%clk 0:00:18.1]} 54.
Na4+ {[%clk 0:00:18.3]} 54... Kd3 {[%clk 0:00:15.5]} 55. Nc5+ {[%clk 0:00:16]}
55... Kc4 {[%clk 0:00:15.9]} 56. Nxb3 {[%clk 0:00:13.3]} 56... Kxb3 {[%clk
0:00:16.8]} 57. Ke4 {[%clk 0:00:13.9]} 57... Kc4 {[%clk 0:00:16.7]} 58. Ke3
{[%clk 0:00:11]} 58... Kd5 {[%clk 0:00:15.6]} 59. Kd3 {[%clk 0:00:11.1]} 59...
Ke5 {[%clk 0:00:15.4]} 60. Ke3 {[%clk 0:00:11.5]} 60... Kf5 {[%clk 0:00:15]} 61.
Kf3 {[%clk 0:00:11.9]} 61... g5 {[%clk 0:00:15.7]} 62. hxg5 {[%clk 0:00:11.4]}
62... fxg5 {[%clk 0:00:16.6]} 63. Ke3 {[%clk 0:00:09.3]} 63... Kg4 {[%clk
0:00:16]} 64. Kf2 {[%clk 0:00:09.6]} 64... Kh3 {[%clk 0:00:16.2]} 65. Kf3 {[%clk
0:00:10]} 65... g4+ {[%clk 0:00:14.2]} 66. Kf2 {[%clk 0:00:02.9]} 66... Kh2
{[%clk 0:00:13.5]} 0-1